[Event "37th Belgrade Trophy 2024"]
[Site "Belgrade"]
[Date "2024.11.27"]
[Round "5.10"]
[White "Kostic, Milutin B"]
[Black "Petrovic, Aleksa"]
[Result "*"]
[ECO "A13"]
[WhiteElo "2029"]
[BlackElo "2262"]
[Annotator "RC"]
[PlyCount "46"]
[EventDate "2024.11.23"]
[EventCountry "SRB"]
[SourceTitle "playchess.com"]
[Source "ChessBase"]
[SourceQuality "1"]
[TimeControl "40/5400+30:900+30"]

1. c4 {[%emt 0:00:03]} e6 {[%emt 1:31:00]} 2. Nf3 {[%emt 0:00:27]} Nf6 {[%emt 1:18:09]} 3. g3 {[%emt 0:00:11]} a6 {[%emt 0:00:25]} 4. Bg2 {[%emt 0:01:36]} b5 {[%emt 0:00:06]} 5. b3 {[%emt 0:02:17]} Bb7 {[%emt 0:00:06]} 6. O-O {[%emt 0:00:24]} c5 {[%emt 0:00:40]} 7. Bb2 {[%emt 0:00:44]} Be7 {[%emt 0:01:20]} 8. Na3 {[%emt 0:02:04]} Qb6 {[%emt 0:01:42]} 9. d3 {[%emt 0:02:37]} d5 {[%emt 0:04:46]} 10. e3 {[%emt 0:04:39]} O-O {[%emt 1:12:01]} 11. Qe2 {[%emt 0:02:22]} Nc6 {[%emt 0:03:35]} 12. Ne5 {[%emt 0:04:20]} Rab8 {[%emt 0:04:41]} 13. f4 {[%emt 1:15:16]} Rfd8 {[%emt 0:05:48]} 14. Rfd1 {[%emt 0:10:38]} Ba8 {[%emt 0:58:06]} 15. Kh1 {[%emt 0:03:04]} bxc4 {[%emt 0:01:44]} 16. dxc4 {[%emt 0:03:32]} d4 {[%emt 0:49:40]} 17. Nxc6 {[%emt 0:02:13]} Bxc6 {[%emt 0:00:06]} 18. Nc2 {[%emt 0:54:03]} d3 {[%emt 0:07:37]} 19. Rxd3 {[%emt 0:00:44]} Rxd3 {[%emt 0:00:06]} 20. Qxd3 {[%emt 0:00:25]} Rd8 {[%emt 0:00:39]} 21. Qe2 {[%emt 0:01:48]} Ne4 {[%emt 0:00:06]} 22. Bxe4 {[%emt 0:02:39]} Bxe4+ {[%emt 0:00:04]} 23. Kg1 {[%emt 0:00:08]} Qa5 {[%emt 0:02:47]} *

[Event "37th Belgrade Trophy 2024"]
[Site "Belgrade"]
[Date "2024.11.27"]
[Round "5.10"]
[White "Kostic, Vladimir V"]
[Black "Petrovic, Aleksa"]
[Result "0-1"]
[ECO "A13"]
[WhiteElo "2006"]
[BlackElo "2262"]
[Annotator "RC"]
[PlyCount "62"]
[EventDate "2024.11.23"]
[EventCountry "SRB"]
[SourceTitle "playchess.com"]
[Source "ChessBase"]
[SourceQuality "1"]
[TimeControl "40/5400+30:900+30"]

1. c4 {[%emt 0:00:03]} e6 {[%emt 0:13:21]} 2. Nf3 {[%emt 0:00:27]} Nf6 {[%emt 0:01:03]} 3. g3 {[%emt 0:00:11]} a6 {[%emt 0:00:25]} 4. Bg2 {[%emt 0:01:36]} b5 {[%emt 0:00:06]} 5. b3 {[%emt 0:02:17]} Bb7 {[%emt 0:00:06]} 6. O-O {[%emt 0:00:24]} c5 {[%emt 0:00:40]} 7. Bb2 {[%emt 0:00:44]} Be7 {[%emt 0:01:20]} 8. Na3 {[%emt 0:02:04]} Qb6 {[%emt 0:01:42]} 9. d3 {[%emt 0:02:37]} d5 {[%emt 0:04:46]} 10. e3 {[%emt 0:04:39]} O-O {[%emt 0:01:51]} 11. Qe2 {[%emt 0:02:22]} Nc6 {[%emt 0:03:35]} 12. Ne5 {[%emt 0:04:20]} Rab8 {[%emt 0:04:41]} 13. f4 {[%emt 0:04:16]} Rfd8 {[%emt 0:05:48]} 14. Rfd1 {[%emt 0:10:38]} Ba8 {[%emt 0:07:42]} 15. Kh1 {[%emt 0:03:04]} bxc4 {[%emt 0:01:44]} 16. dxc4 {[%emt 0:03:32]} d4 {[%emt 0:02:12]} 17. Nxc6 {[%emt 0:02:13]} Bxc6 {[%emt 0:00:06]} 18. Nc2 {[%emt 0:01:01]} d3 {[%emt 0:07:37]} 19. Rxd3 {[%emt 0:00:44]} Rxd3 {[%emt 0:00:06]} 20. Qxd3 {[%emt 0:00:25]} Rd8 {[%emt 0:00:39]} 21. Qe2 {[%emt 0:01:48]} Ne4 {[%emt 0:00:06]} 22. Bxe4 {[%emt 0:02:39]} Bxe4+ {[%emt 0:00:04]} 23. Kg1 {[%emt 0:00:08]} Qa5 {[%emt 0:02:47]} 24. b4 {[%emt 0:11:08]} Qa4 {[%emt 0:01:37]} 25. Ne1 {[%emt 0:02:38]} Qxb4 {[%emt 0:00:13]} 26. a3 {[%emt 0:03:25]} Rd2 {[%emt 0:03:26]} 27. axb4 {[%emt 0:03:17]} Rxe2 {[%emt 0:00:04]} 28. Be5 {[%emt 0:00:54]} f6 {[%emt 0:00:48]} 29. Kf1 {[%emt 0:01:31]} Rxh2 {[%emt 0:00:15]} 30. Bc7 {[%emt 0:00:18]} cxb4 {[%emt 0:00:22]} 31. Rxa6 {[%emt 0:00:11]} b3 {[%emt 0:00:12]} 0-1